fUSD/lending_fUSD_20240818
["ID","MTS","AMOUNT","RATE_DAILY","PERIOD"]
[335185256,1723948246769,-1000.54103258,0.00011,2]
[335185257,1723948246780,-57510.14240531,0.00011,2]
[335185258,1723948246791,-553.56974129,0.00011,2]
[335185259,1723948246803,-11753.76194839,0.00011,2]
[335185260,1723948246813,-2439.94300744,0.00011,2]
[335185261,1723948246825,-458.27649239,0.00011,2]
[335185262,1723948246836,-1740.74654837,0.00011,2]
[335185263,1723948246847,-4365.64873992,0.00011,2]
[335185264,1723948246858,-3666.82998998,0.00011,2]
[335185265,1723948246869,-7533.79919372,0.00011,2]
[335185266,1723948246880,-12135.87654505,0.00011,2]
[335185267,1723948246892,-2227.32105604,0.00011,2]
[335185268,1723948246903,-609.53823585,0.00011,2]
[335185269,1723948246917,-474.45573473,0.00011,2]
[335185270,1723948304992,155.0,0.00013333,60]
[335185271,1723948336002,500.0,9.163e-05,2]
[335185272,1723948338485,500.0,9.023e-05,2]
[335185273,1723948341736,500.0,9.478e-05,2]
[335185281,1723948492982,486.0,8.219e-05,2]
[335185283,1723948547941,155.0,0.00011488,60]
[335185284,1723948592564,155.33354858,9.962e-05,2]
[335185285,1723948597551,186.68,9.941e-05,2]
[335185288,1723948635502,500.0,9.273e-05,2]
[335185289,1723948635608,500.0,9.779e-05,2]
[335185290,1723948636246,500.0,9.015e-05,2]
[335185291,1723948636750,500.0,9.104e-05,2]
[335185292,1723948647262,500.0,9.4e-05,2]
[335185293,1723948647742,500.0,9.453e-05,2]
[335185294,1723948661673,400.0,9.858e-05,2]
[335185297,1723948744024,1626.13,9.863e-05,2]
[335185298,1723948829639,2511.73,9.873e-05,2]
[335185299,1723948856996,157.35105188,0.00011955,60]
[335185300,1723948935888,500.0,9.575e-05,2]
[335185301,1723948942725,500.0,9.583e-05,2]
[335185302,1723948944704,500.0,9.798e-05,2]
[335185303,1723948945183,500.0,9.813e-05,2]
[335185304,1723948948003,504.24625948,9.697e-05,2]
[335185305,1723948948852,275.9398866,9.494e-05,2]
[335185306,1723948950435,500.0,9.32e-05,2]
[335185307,1723948983760,200.0,9.853e-05,2]
[335185308,1723949053991,483.18,8.219e-05,2]
[335185309,1723949091515,325.33,9.845e-05,2]
[335185310,1723949105826,250.0,9.844e-05,2]
[335185312,1723949150778,544.45,9.922e-05,2]
[335185313,1723949177218,680.0,9.846e-05,2]
[335185315,1723949227104,1293.9,9.845e-05,2]
[335185322,1723949235996,500.0,9.181e-05,2]
[335185323,1723949236487,500.0,9.399e-05,2]
[335185324,1723949240774,500.0,9.598e-05,2]
[335185325,1723949243057,999.56949147,9.788e-05,2]
[335185326,1723949246665,500.7,9.52e-05,2]
[335185330,1723949254835,500.0,9.684e-05,2]
[335185331,1723949255347,500.0,9.687e-05,2]
[335185332,1723949255439,688.90257803,9.94e-05,2]
[335185333,1723949255879,500.0,9.886e-05,2]
[335185334,1723949299262,3033.7903912,9.943e-05,2]
[335185335,1723949328872,23900.0,9.827e-05,2]
[335185336,1723949329262,3033.7903912,9.943e-05,2]
[335185338,1723949370624,-346.29511294,9.988e-05,2]
[335185342,1723949398570,493.87811631,9.943e-05,2]
[335185343,1723949423798,155.0,9.943e-05,2]
[335185345,1723949431841,-156.76260565,9.988e-05,2]
[335185346,1723949431850,-2503.9530018,9.999e-05,2]
[335185347,1723949431859,-608.26,0.0001,2]
[335185348,1723949431869,-500.0,0.00010058,2]
[335185349,1723949431879,-500.0,0.00010154,2]
[335185350,1723949431888,-500.0,0.00010159,2]
[335185351,1723949431897,-34.31164007,0.00010191,2]
[335185352,1723949431908,-465.68835993,0.00010191,2]
[335185353,1723949431918,-150.0,0.00010219,2]
[335185354,1723949431927,-300.0,0.00010318,2]
[335185355,1723949431936,-300.0,0.00010318,2]
[335185356,1723949431945,-494.54,0.00010319,2]
[335185357,1723949431954,-842.49,0.00010319,2]
[335185358,1723949431963,-152.7721736,0.000104,2]
[335185359,1723949432097,-273.8978264,0.000104,2]
[335185360,1723949432107,-426.67,0.000104,2]
[335185361,1723949432116,-483.18,0.00010469,2]
[335185362,1723949432125,-273.04272451,0.00010471,2]
[335185369,1723949437833,-429.99492343,0.00010471,2]
[335185370,1723949437844,-364.0,0.00010471,2]
[335185371,1723949437855,-470.83343635,0.00010471,2]
[335185372,1723949437866,-2510.72,0.00010471,2]
[335185373,1723949437877,-6523.99298015,0.00010471,2]
[335185374,1723949437886,-202.37982001,0.00010528,2]
[335185375,1723949437897,-297.62017999,0.00010528,2]
[335185376,1723949437906,-344.52982,0.00010566,2]
[335185377,1723949437917,-285.763033,0.00010566,2]
[335185378,1723949437929,-700.54689836,0.00010566,2]
[335185379,1723949437940,-1802.50939316,0.00010566,2]
[335185380,1723949437951,-467.21821101,0.00010566,2]
[335185381,1723949437960,-150.0,0.00010599,2]
[335185382,1723949437972,-844.92,0.000106,2]
[335185383,1723949437981,-1063.64,0.000106,2]
[335185384,1723949437991,-1062.38,0.000106,2]
[335185385,1723949438000,-431.08,0.000106,2]
[335185386,1723949438009,-421.13,0.000106,2]
[335185387,1723949438018,-1670.52,0.000106,2]
[335185388,1723949438028,-776.91,0.000106,2]
[335185390,1723949438038,-151.13,0.000106,2]
[335185392,1723949438048,-500.0,0.00010666,2]
[335185394,1723949438057,-500.0,0.00010671,2]
[335185396,1723949438066,-500.0,0.00010685,2]
[335185398,1723949438075,-1000.0,0.00010694,2]
[335185400,1723949438084,-1500.0,0.00010699,2]
[335185402,1723949438094,-201.12146695,0.00010699,2]
[335185404,1723949438103,-500.0,0.000107,2]
[335185406,1723949438112,-2343.11814301,0.00010713,2]
[335185408,1723949438122,-893.27357362,0.00010713,2]
[335185410,1723949438131,-150.0,0.00010726,2]
[335185412,1723949438140,-150.0,0.00010733,2]
[335185414,1723949438149,-150.0,0.00010753,2]
[335185416,1723949438158,-150.0,0.00010753,2]
[335185417,1723949438167,-150.0,0.00010757,2]
[335185419,1723949438175,-150.0,0.00010761,2]
[335185421,1723949438185,-150.0,0.00010782,2]
[335185423,1723949438194,-150.0,0.00010792,2]
[335185425,1723949438203,-4704.15184783,0.000108,2]
[335185427,1723949438212,-3052.91738622,0.000108,2]
[335185429,1723949438224,-150.0,0.00010801,2]
[335185431,1723949438233,-150.0,0.00010802,2]
[335185433,1723949438242,-150.0,0.00010807,2]
[335185435,1723949438251,-150.0,0.00010819,2]
[335185437,1723949438260,-150.0,0.00010825,2]
[335185439,1723949438269,-150.0,0.00010828,2]
[335185441,1723949438278,-1064.19384618,0.00010835,2]
[335185443,1723949438286,-150.0,0.00010853,2]
[335185445,1723949438295,-150.0,0.00010854,2]
[335185447,1723949438304,-150.0,0.00010855,2]
[335185448,1723949438314,-150.0,0.00010856,2]
[335185450,1723949438323,-155.42850072,0.00010861,2]
[335185452,1723949438332,-150.0,0.00010861,2]
[335185454,1723949438342,-600.79792946,0.00010862,2]
[335185456,1723949438351,-179.4623719,0.00010862,2]
[335185458,1723949438360,-155.21854714,0.00010862,2]
[335185460,1723949438369,-155.32164725,0.00010862,2]
[335185462,1723949438378,-155.35201461,0.00010862,2]
[335185464,1723949438388,-150.0,0.00010864,2]
[335185466,1723949438397,-150.0,0.0001087,2]
[335185467,1723949438406,-150.0,0.00010875,2]
[335185468,1723949438416,-150.0,0.00010885,2]
[335185469,1723949438428,-150.0,0.00010886,2]
[335185470,1723949438437,-185.48188221,0.00010888,2]
[335185471,1723949438446,-204.15729667,0.00010888,2]
[335185472,1723949438455,-196.66616766,0.00010888,2]
[335185473,1723949438465,-319.38158331,0.00010888,2]
[335185474,1723949438478,-442.05614746,0.00010888,2]
[335185475,1723949438488,-381.75339492,0.00010888,2]
[335185477,1723949438497,-155.38671598,0.00010888,2]
[335185479,1723949438506,-495.06758146,0.00010888,2]
[335185480,1723949438515,-557.99776162,0.00010888,2]
[335185482,1723949438524,-297.4607519,0.00010888,2]
[335185483,1723949438533,-3951.7887362,0.00010888,2]
[335185484,1723949438543,-3725.68032596,0.0001089,2]
[335185485,1723949438552,-285.4238,0.0001089,2]
[335185486,1723949438562,-236.36319912,0.0001089,2]
[335185487,1723949438571,-255.21992957,0.0001089,2]
[335185488,1723949438581,-188.27690742,0.0001089,2]
[335185489,1723949438591,-161.1343831,0.0001089,2]
[335185490,1723949438600,-366.08465636,0.0001089,2]
[335185491,1723949438610,-160.1950337,0.00010899,2]
[335185492,1723949438619,-155.32176561,0.00010899,2]
[335185493,1723949438629,-155.90514102,0.00010899,2]
[335185494,1723949438638,-155.0,0.00010899,2]
[335185495,1723949438808,-179.17215777,0.00010899,2]
[335185496,1723949438819,-185.90853349,0.00010899,2]
[335185497,1723949438829,-177.7876,0.000109,2]
[335185498,1723949438838,-979.0087,0.000109,2]
[335185499,1723949438847,-671.994,0.000109,2]
[335185500,1723949438857,-625.3295,0.000109,2]
[335185501,1723949438866,-1271.1581,0.000109,2]
[335185502,1723949438875,-1000.0,0.000109,2]
[335185503,1723949438884,-7500.0,0.000109,2]
[335185504,1723949438894,-1280.0,0.000109,2]
[335185505,1723949438903,-3237.5112,0.000109,2]
[335185506,1723949438913,-5533.2639,0.000109,2]
[335185507,1723949438922,-753.4736,0.000109,2]
[335185508,1723949438932,-496.2913,0.000109,2]
[335185509,1723949438942,-687.65318458,0.000109,2]
[335185510,1723949438952,-274.71460437,0.00010901,2]
[335185511,1723949438961,-150.0,0.00010925,2]
[335185512,1723949438972,-150.0,0.00010931,2]
[335185513,1723949438981,-150.0,0.00010943,2]
[335185514,1723949438990,-150.0,0.0001095,2]
[335185515,1723949438999,-150.0,0.00010953,2]
[335185516,1723949439009,-150.0,0.00010954,2]
[335185517,1723949439019,-250.0,0.00010959,2]
[335185518,1723949439028,-150.0,0.00010964,2]
[335185519,1723949439037,-150.0,0.00010964,2]
[335185520,1723949439048,-150.0,0.00010969,2]
[335185521,1723949439058,-200.0,0.00010973,2]
[335185522,1723949439068,-150.0,0.00010977,2]
[335185523,1723949439078,-1257.95663297,0.00010979,2]
[335185524,1723949439087,-150.0,0.00010982,2]
[335185525,1723949439096,-449.778,0.00010987,2]
[335185526,1723949439105,-813.189,0.00010987,2]
[335185527,1723949439115,-163.034,0.00010987,2]
[335185528,1723949439124,-446.0,0.00010987,2]
[335185529,1723949439133,-991.079,0.00010987,2]
[335185530,1723949439142,-338.726,0.00010987,2]
[335185531,1723949439152,-150.0,0.00010991,2]
[335185532,1723949439161,-500.0,0.00010991,2]
[335185533,1723949439171,-59816.36945335,0.00010993,2]
[335185534,1723949439180,-696.4169593,0.00010994,2]
[335185535,1723949439189,-4203.8742653,0.00010994,2]
[335185536,1723949439199,-500.0,0.00010994,2]
[335185537,1723949439208,-764.329918,0.00010994,2]
[335185538,1723949439217,-150.0,0.00010996,2]
[335185539,1723949439231,-12526.35179625,0.00010997,2]
[335185540,1723949439248,-258.80252209,0.00010999,2]
[335185541,1723949439257,-371.61115382,0.00010999,2]
[335185542,1723949439267,-500.0,0.00010999,2]
[335185543,1723949439276,-275.29351473,0.00010999,2]
[335185544,1723949439285,-553.0,0.00011,2]
[335185545,1723949439295,-271634.58838924,0.00011,2]
[335185546,1723949439308,-84282.51277697,0.00011,2]
[335185547,1723949439318,-268301.2201607,0.00011,2]
[335185548,1723949439327,-2000.0,0.00011,2]
[335185549,1723949439336,-2608531.19922994,0.00011,2]
[335185550,1723949439347,-380.0,0.00011,2]
[335185551,1723949439358,-42118.85776161,0.00011,2]
[335185552,1723949439369,-5041.6,0.00011,2]
[335185553,1723949439395,-663.2,0.00011,2]
[335185554,1723949439407,-72851.66355887,0.00011,2]
[335185555,1723949439422,-140533.99345,0.00011,2]
[335185556,1723949439433,-2329.88477137,0.00011,2]
[335185557,1723949439444,-4985.06356557,0.00011,2]
[335185558,1723949439455,-18562.03119185,0.00011,2]
[335185559,1723949439940,-703.655,0.00010699,2]
[335185560,1723949439952,-1913.95982918,0.00010699,2]
[335185561,1723949439963,-397.63098387,0.00010699,2]
[335185562,1723949439977,-910.19615416,0.00010699,2]
[335185563,1723949439987,-432.5166998,0.00010888,2]
[335185564,1723949439997,-289.88752704,0.00010888,2]
[335185565,1723949440006,-63587.73309568,0.00011,2]
[335185566,1723949440021,-1705.11928477,0.00011,2]
[335185567,1723949440033,-1605.85700381,0.00011,2]
[335185568,1723949440044,-516.139306,0.00011,2]
[335185569,1723949440161,-30147.174,0.00011,2]
[335185570,1723949440173,-415.1,0.00011,2]
[335185571,1723949440184,-111855.72390297,0.00011,2]
[335185572,1723949440195,-60865.05806501,0.00011,2]
[335185573,1723949440206,-8821.75096878,0.00011,2]
[335185574,1723949440217,-1307.8,0.00011,2]
[335185575,1723949440234,-84567.13992091,0.00011,2]
[335185576,1723949440245,-706.04,0.00011,2]
[335185577,1723949440256,-8402.94099801,0.00011,2]
[335185578,1723949440269,-28500.0,0.00011,2]
[335185579,1723949440280,-5000.00000003,0.00011,2]
[335185580,1723949440293,-366.78422846,0.00011,2]
[335185586,1723949442763,-394.58101345,0.00011,2]
[335185587,1723949442775,-19312.17264748,0.00011,2]
[335185589,1723949442786,-604.07802196,0.00011,2]
[335185590,1723949442797,-296.13443335,0.00011,2]
[335185609,1723949443544,-707.3898016,0.00011,2]
[335185611,1723949443555,-3079.99995,0.00011,2]
[335185613,1723949443566,-1732.88242047,0.00011,2]
[335185614,1723949443577,-25007.0,0.00011,2]
[335185615,1723949443589,-318.5195,0.00011,2]
[335185616,1723949443600,-2126.874996,0.00011,2]
[335185617,1723949443611,-5626.523833,0.00011,2]
[335185618,1723949443621,-3160.1831115,0.00011,2]
[335185619,1723949443632,-592.3999995,0.00011,2]
[335185620,1723949443643,-1388.82081271,0.00011,2]
[335185621,1723949443654,-576.87853747,0.00011,2]
[335185622,1723949443665,-865830.38098504,0.00011,2]
[335185623,1723949443688,-430.65367495,0.00011,2]
[335185624,1723949443699,-640.224,0.00011,2]
[335185625,1723949443711,-12175.6,0.00011,2]
[335185626,1723949443747,-2421.6,0.00011,2]
[335185627,1723949443758,-7707.22865925,0.00011,2]
[335185628,1723949445673,-266.5602228,0.00011,2]
[335185645,1723949445927,-605.67764587,0.00011,2]
[335185646,1723949445939,-78522.62264323,0.00011,2]
[335185647,1723949445949,-6060.8,0.00011,2]
[335185648,1723949445960,-37667.31486782,0.00011,2]
[335185649,1723949445971,-3765.69953211,0.00011,2]
[335185650,1723949445982,-335.60142443,0.00011,2]
[335185651,1723949445994,-573.43013765,0.00011,2]
[335185652,1723949446005,-529.98848093,0.00011,2]
[335185653,1723949446015,-62003.14113327,0.00011,2]
[335185654,1723949446026,-3631.65023514,0.00011,2]
[335185655,1723949446037,-2382.38505996,0.00011,2]
[335185656,1723949446047,-18489.299042,0.00011,2]
[335185657,1723949446059,-336.21587999,0.00011,2]
[335185658,1723949446070,-970.74420354,0.00011,2]
[335185659,1723949446080,-353.68141749,0.00011,2]
[335185660,1723949446091,-500.0,0.00011,2]
[335185661,1723949446102,-4017.62324958,0.00011,2]
[335185662,1723949446115,-1507.92243112,0.00011,2]
[335185663,1723949446126,-9031.66202196,0.00011,2]
[335185664,1723949446174,-122913.23406006,0.00011,2]
[335185665,1723949446186,-2269.2549735,0.00011,2]
[335185666,1723949446205,-748.82902201,0.00011,2]
[335185667,1723949446215,-275.5687984,0.00011,2]
[335185668,1723949446227,-473.16872116,0.00011,2]
[335185669,1723949446238,-1613.48867776,0.00011,2]
[335185673,1723949535607,500.0,9.215e-05,2]
[335185674,1723949535687,905.94899546,9.782e-05,2]
[335185675,1723949536124,500.0,9.811e-05,2]
[335185676,1723949539469,500.0,9.861e-05,2]
[335185677,1723949548703,500.0,9.388e-05,2]
[335185678,1723949550097,500.0,9.371e-05,2]
[335185679,1723949557787,475.68,8.258e-05,2]
[335185684,1723949706684,456.0,9.982e-05,2]
[335185688,1723949785909,887.37,9.962e-05,2]
[335185691,1723949836284,500.0,9.099e-05,2]
[335185692,1723949836794,500.0,9.701e-05,2]
[335185693,1723949837316,500.0,9.713e-05,2]
[335185694,1723949841235,500.0,9.18e-05,2]
[335185695,1723949846351,752.34047091,9.033e-05,2]
[335185697,1723949851317,500.0,9.514e-05,2]
[335185698,1723949852464,384.93365667,9.678e-05,2]
[335185699,1723949852799,500.0,9.699e-05,2]
[335185703,1723950135585,526.89678723,9.909e-05,2]
[335185704,1723950139342,500.0,9.697e-05,2]
[335185705,1723950144703,500.0,9.408e-05,2]
[335185706,1723950145220,500.0,9.528e-05,2]
[335185707,1723950145733,500.0,9.754e-05,2]
[335185709,1723950160768,490.17,8.219e-05,2]
[335185711,1723950207349,635.2,9.877e-05,2]
[335185712,1723950228960,219.30245518,9.962e-05,2]
[335185713,1723950244529,1257.50707975,9.962e-05,2]
[335185714,1723950255524,628.88487625,9.962e-05,2]
[335185715,1723950259186,443.68,9.873e-05,2]
[335185716,1723950291317,250.0,9.861e-05,2]
[335185734,1723950453527,500.0,9.868e-05,2]
[335185735,1723950453866,500.0,9.68e-05,2]
[335185737,1723950571843,1108.301799,9.95e-05,2]
[335185740,1723950631887,-622.0,9.988e-05,2]
[335185741,1723950631898,-332.05935971,9.988e-05,2]
[335185742,1723950631908,-743.89559219,9.999e-05,2]
[335185752,1723950632114,-150.07621554,9.999e-05,2]
[335185753,1723950632127,-550.0,0.0001,2]
[335185754,1723950632136,-640.96304923,0.0001,2]
[335185755,1723950632146,-169.74,0.00010004,2]
[335185756,1723950632156,-1983.99026026,0.00010009,2]
[335185757,1723950632167,-383.42402766,0.00010009,2]
[335185758,1723950632177,-41.87613499,0.00010009,2]
[335185759,1723950632189,-336.83048235,0.00010009,2]
[335185760,1723950632198,-1180.5968123,0.00010009,2]
[335185761,1723950632210,-319.4031877,0.00010009,2]
[335185762,1723950632219,-487.53808258,0.00010009,2]
[335185763,1723950632228,-155.4703365,0.00010009,2]
[335185764,1723950632237,-300.0,0.00010025,2]
[335185765,1723950632246,-617.44067872,0.00010026,2]
[335185766,1723950632258,-577.58585432,0.00010026,2]
[335185767,1723950632268,-164.01574698,0.00010026,2]
[335185768,1723950632277,-158.09389205,0.00010026,2]
[335185769,1723950632286,-174.67,0.00010043,2]
[335185770,1723950632295,-499.99,0.00010043,2]
[335185771,1723950632304,-10539.83198925,0.00010097,2]
[335185772,1723950632313,-155.0,0.00010471,2]
[335185773,1723950632323,-1074.78314637,0.00010471,2]
[335185774,1723950632332,-150.0,0.00010504,2]
[335185775,1723950632341,-3882.16223642,0.00010505,2]
[335185776,1723950632351,-500.0,0.0001067,2]
[335185777,1723950632360,-408.15,0.000107,2]
[335185778,1723950632370,-531.34,0.000107,2]
[335185779,1723950632380,-391.92267784,0.000107,2]
[335185780,1723950632393,-236.90732216,0.000107,2]
[335185781,1723950632402,-115.05267784,0.000107,2]
[335185782,1723950632414,-311.61732216,0.000107,2]
[335185783,1723950632424,-835.92,0.000107,2]
[335185784,1723950632435,-150.0,0.000107,2]
[335185785,1723950632444,-151.31,0.000107,2]
[335185786,1723950632454,-421.13,0.000107,2]
[335185787,1723950632465,-150.0,0.000107,2]
[335185788,1723950632475,-426.67,0.000107,2]
[335185789,1723950632485,-531.34,0.000107,2]
[335185790,1723950632494,-835.92,0.000107,2]
[335185791,1723950632504,-142.05980112,0.000107,2]
[335185792,1723950632515,-131.65019888,0.000107,2]
[335185793,1723950632525,-238.73,0.000107,2]
[335185794,1723950632534,-51.17820036,0.000107,2]
[335185795,1723950632545,-559.03603144,0.000107,2]
[335185796,1723950632557,-225.7057682,0.000107,2]
[335185797,1723950632566,-1005.08230572,0.00010713,2]
[335185798,1723950632587,-1500.71840302,0.00010713,2]
[335185799,1723950632596,-102.05073887,0.00010713,2]
[335185800,1723950632610,-548.18585627,0.00010713,2]
[335185801,1723950632619,-156.0,0.0001079,2]
[335185802,1723950632628,-235.64139352,0.00010799,2]
[335185803,1723950632639,-268.07010932,0.00010799,2]
[335185804,1723950632651,-512.04631479,0.00010799,2]
[335185805,1723950632660,-835.92,0.000108,2]
[335185806,1723950632670,-30.32945923,0.000108,2]
[335185807,1723950632681,-277.50880542,0.000108,2]
[335185808,1723950636159,465.66,8.219e-05,2]
[335185811,1723950637948,-465.66,0.00010477,2]
[335185812,1723950637957,-528.08173535,0.000108,2]
[335185813,1723950637967,-166.66694184,0.00010888,2]
[335185814,1723950637976,-536.68813576,0.0001089,2]
[335185815,1723950637987,-3887.75996326,0.0001089,2]
[335185816,1723950637996,-500.0,0.0001089,2]
[335185817,1723950638006,-155.0,0.0001089,2]
[335185818,1723950638015,-2343.11814301,0.0001089,2]
[335185819,1723950638024,-341.34077296,0.0001089,2]
[335185820,1723950638033,-718.3116,0.0001089,2]
[335185821,1723950638042,-12501.421,0.0001089,2]
[335185822,1723950638051,-4746.2377,0.00010893,2]
[335185823,1723950638061,-288.5556,0.00010893,2]
[335185824,1723950638070,-247.9946,0.00010894,2]
[335185825,1723950638079,-1139.5069,0.00010894,2]
[335185826,1723950638088,-420.64850572,0.00010899,2]
[335185827,1723950638097,-420.64850572,0.00010899,2]
[335185828,1723950638107,-420.64850572,0.00010899,2]
[335185829,1723950638116,-420.64850572,0.00010899,2]
[335185830,1723950638125,-420.64850572,0.00010899,2]
[335185831,1723950638135,-420.64850572,0.00010899,2]
[335185832,1723950638144,-420.64850572,0.00010899,2]
[335185833,1723950638153,-420.64850572,0.00010899,2]
[335185834,1723950638162,-211.05406018,0.00010899,2]
[335185835,1723950638172,-156.02828645,0.00010899,2]
[335185836,1723950638181,-949.01086108,0.00010899,2]
[335185837,1723950638190,-420.64850572,0.00010899,2]
[335185839,1723950638199,-2706.50996158,0.000109,2]
[335185854,1723950638438,-52310.25689858,0.000109,2]
[335185856,1723950638449,-744.74833634,0.000109,2]
[335185858,1723950638461,-582.24356216,0.000109,2]
[335185860,1723950638472,-351.92,0.000109,2]
[335185864,1723950638497,-1553.4252,0.000109,2]
[335185866,1723950638508,-561.82928208,0.000109,2]
[335185868,1723950638519,-423.10202108,0.000109,2]
[335185871,1723950638530,-53.67603818,0.000109,2]
[335185872,1723950638539,-2146.35747108,0.000109,2]
[335185875,1723950638550,-5353.64252892,0.000109,2]
[335185877,1723950638559,-420.64850572,0.000109,2]
[335185878,1723950638568,-264.20661714,0.00010928,2]
[335185880,1723950638577,-645.65965171,0.00010949,2]
[335185882,1723950638586,-250.0,0.00010959,2]
[335185884,1723950638595,-200.0,0.00010973,2]
[335185886,1723950638604,-59209.21887741,0.0001099,2]
[335185888,1723950638613,-162.34779276,0.00010993,2]
[335185890,1723950638623,-2842.68366227,0.00010993,2]
[335185892,1723950638632,-585.3154149,0.00010994,2]
[335185893,1723950638641,-183.75984862,0.00010997,2]
[335185895,1723950638650,-235.27502008,0.00010999,2]
[335185897,1723950638659,-500.0,0.00010999,2]
[335185899,1723950638668,-500.0,0.00010999,2]
[335185901,1723950638677,-500.0,0.00010999,2]
[335185902,1723950638687,-500.0,0.00010999,2]
[335185904,1723950638696,-500.0,0.00010999,2]
[335185906,1723950638705,-500.0,0.00010999,2]
[335185908,1723950638714,-500.0,0.00010999,2]
[335185910,1723950638723,-500.0,0.00010999,2]
[335185912,1723950638732,-500.0,0.00010999,2]
[335185914,1723950638741,-500.0,0.00010999,2]
[335185915,1723950638751,-500.0,0.00010999,2]
[335185917,1723950638759,-360.8205438,0.00010999,2]
[335185919,1723950638769,-205.30706956,0.00010999,2]
[335185921,1723950638778,-218.36813021,0.00010999,2]
[335185923,1723950638788,-270.60181535,0.00010999,2]
[335185925,1723950638797,-205.59376051,0.00010999,2]
[335185927,1723950638806,-256184.01793133,0.00011,2]
[335185929,1723950638815,-5868625.32559355,0.00011,2]
[335185931,1723950638827,-3034.81210551,0.00011,2]
[335185933,1723950638837,-694.46558119,0.00011,2]
[335185935,1723950638848,-2510.72,0.00011,2]
[335185938,1723950638860,-11775.33259882,0.00011,2]
[335185940,1723950638870,-60486.91812475,0.00011,2]
[335185945,1723950640132,-155.0,0.00010097,2]
[335185946,1723950640143,-2842.68366227,0.00010989,2]
[335185947,1723950640152,-1013.16942173,0.00011,2]
[335185948,1723950640163,-588.39048859,0.00011,2]
[335185949,1723950640175,-475.21517826,0.00011,2]
[335185950,1723950640186,-1610.53421101,0.00011,2]
[335185951,1723950640395,-179240.95075078,0.00011,2]
[335185952,1723950640406,-2938.65744145,0.00011,2]
[335185953,1723950640416,-312.3160075,0.00011,2]
[335185954,1723950640428,-91799.23822227,0.00011,2]
[335185955,1723950640440,-4832.22556236,0.00011,2]
[335185956,1723950640452,-9920.5,0.00011,2]
[335185957,1723950640463,-3200.6762738,0.00011,2]
[335185958,1723950640474,-296.33106017,0.00011,2]
[335185959,1723950640484,-25549.94544281,0.00011,2]
[335185960,1723950640604,-4355.31238879,0.00011,2]
[335185962,1723950640615,-360.71776279,0.00011,2]
[335185963,1723950640627,-819.68910007,0.00011,2]
[335185964,1723950640638,-4044.67273032,0.00011,2]
[335185965,1723950640649,-4514.52548967,0.00011,2]
[335185966,1723950640659,-2898.81814578,0.00011,2]
[335185967,1723950640671,-83111.61462018,0.00011,2]
[335185968,1723950640682,-865.43927189,0.00011,2]
[335185969,1723950640693,-492.0,0.00011,2]
[335185970,1723950640705,-3255.0,0.00011,2]
[335185971,1723950640716,-3008.35,0.00011,2]
[335185972,1723950640727,-256.89893274,0.00011,2]
[335185973,1723950640739,-887.79639122,0.00011,2]
[335185974,1723950640751,-3048.32772882,0.00011,2]
[335185976,1723950640905,-670.7,0.00011,2]
[335185977,1723950640916,-533.1,0.00011,2]
[335185978,1723950642938,-332.2192021,0.00011,2]
[335185980,1723950642949,-432.0,0.00011,2]
[335185981,1723950642960,-1310.89655929,0.00011,2]
[335185989,1723950643144,-2833.13889606,0.00011,2]
[335185990,1723950643155,-735.915,0.00011,2]
[335185991,1723950643166,-526.28941192,0.00011,2]
[335185992,1723950643177,-297.95376087,0.00011,2]
[335185993,1723950643189,-293.30521316,0.00011,2]